bitfinex/quotes_ETHUSD_20220226
["timestamp","ask_amount","ask_price","bid_price","bid_amount"]
[1645908840346,0.5,2834.8,2834.7,8.23227651]
[1645908841899,0.5,2834.8,2834.7,7.0987]
[1645908843104,1.39183862,2834.8,2834.7,7.0987]
[1645908843606,0.5,2834.8,2834.7,7.0987]
[1645908844201,1.39183862,2834.8,2834.7,7.0987]
[1645908845232,1.39183862,2834.8,2834.7,7.12322292]
[1645908846637,0.641321,2834.8,2834.7,7.12322292]
[1645908847036,0.5,2834.8,2834.7,7.12322292]
[1645908859395,0.5,2834.8,2834.7,7.07322292]
[1645908865793,0.89178748,2835.2,2834.8,11.5]
[1645908865999,0.00402461,2835.3,2835.0,0.3529]
[1645908866195,0.00402461,2835.3,2835.2,11.1429]
[1645908866395,0.00402461,2835.3,2835.2,14.6429]
[1645908866593,0.00402461,2835.3,2835.2,15.9429]
[1645908866792,0.00402461,2835.3,2835.2,17.10692828]
[1645908866996,0.05,2835.7,2835.2,17.10692828]
[1645908866997,0.5,2835.4,2835.2,17.10692828]
[1645908867195,0.50114824,2835.4,2835.2,17.10692828]
[1645908867393,0.50114824,2835.4,2835.3,7.4756]
[1645908867833,0.00114824,2835.4,2835.3,22.7656]
[1645908868038,0.05,2835.7,2835.3,22.7656]
[1645908868437,0.00114824,2835.5,2835.3,22.7656]
[1645908868637,0.50114824,2835.5,2835.4,3.8529]
[1645908868834,0.50114824,2835.5,2835.4,4.8529]
[1645908869035,0.50114824,2835.5,2835.4,4.5]
[1645908869234,0.5,2835.5,2835.4,4.5]
[1645908870439,0.35784732,2835.5,2835.4,3.5]
[1645908870638,0.35784732,2835.5,2835.4,1.0]
[1645908870838,0.35784732,2835.5,2835.3,11.9227]
[1645908871041,0.35784732,2835.5,2835.3,8.4227]
[1645908871239,0.35784732,2835.5,2835.3,11.9227]
[1645908871479,0.35784732,2835.5,2835.4,3.5]
[1645908871879,0.36163796,2835.5,2835.4,1.0]
[1645908872081,0.36163796,2835.5,2835.3,11.6227]
[1645908872284,0.36163796,2835.5,2835.3,8.1227]
[1645908872685,0.36163796,2835.5,2835.4,3.5]
[1645908872883,0.35784732,2835.5,2835.4,3.5]
[1645908873083,0.35784732,2835.5,2835.4,4.5]
[1645908873284,0.35898906,2835.5,2835.4,4.5]
[1645908873684,0.35898906,2835.5,2835.4,1.0]
[1645908874087,0.35898906,2835.5,2835.3,11.6227]
[1645908874088,0.35784732,2835.5,2835.3,11.6227]
[1645908874285,0.35784732,2835.5,2835.3,8.1227]
[1645908874895,0.00098704,2835.6,2835.4,3.8529]
[1645908875154,0.00394759,2836.0,2835.6,9.5]
[1645908875343,0.141261,2836.2,2835.7,4.6548104]
[1645908875540,0.01309795,2836.1,2835.7,4.6548104]
[1645908875740,0.01309795,2836.1,2835.7,5.6548104]
[1645908875940,0.5,2835.9,2835.7,5.6548104]
[1645908876139,0.5,2835.9,2835.8,10.6215]
[1645908876449,0.5,2835.9,2835.8,22.7644]
[1645908876450,0.0001,2835.9,2835.8,22.7644]
[1645908876647,1.33809181,2836.9,2836.3,1.04929209]
[1645908876648,0.00349434,2836.6,2836.3,1.04929209]
[1645908876848,0.00349434,2836.8,2836.3,1.04929209]
[1645908877045,0.007,2836.9,2836.1,3.5]
[1645908877450,0.007,2836.9,2836.1,4.5]
[1645908877647,0.4260599,2837.1,2836.1,4.5]
[1645908877843,0.88194,2837.2,2836.1,4.5]
[1645908878044,0.00100762,2836.6,2836.1,4.5]
[1645908878245,0.00100762,2836.6,2836.5,1.25319742]
[1645908878646,0.00100762,2836.6,2836.2,7.1205]
[1645908878881,0.88194,2837.2,2836.2,7.0955]
[1645908879086,0.3529,2837.0,2836.2,7.0955]
[1645908879287,0.88219,2836.6,2836.2,7.0955]
[1645908879482,3.5,2836.5,2836.2,7.0955]
[1645908879885,0.51,2836.4,2836.2,7.0955]
[1645908880092,0.51,2836.4,2836.0,0.0008]
[1645908880093,6.0,2836.2,2836.0,0.0008]
[1645908880285,6.39525313,2836.1,2836.0,0.0008]
[1645908880486,6.69525313,2836.1,2836.0,0.0008]
[1645908880886,8.09477074,2836.1,2836.0,0.0008]
[1645908881686,9.04837074,2836.1,2836.0,0.0008]
[1645908882088,7.64885313,2836.1,2836.0,0.0008]
[1645908882736,8.64885313,2836.1,2836.0,0.0008]
[1645908883337,9.8408246,2836.1,2836.0,0.0008]
[1645908883738,8.64885313,2836.1,2836.0,0.0008]
[1645908885639,5.14885313,2836.1,2836.0,0.0008]
[1645908886038,4.19525313,2836.1,2836.0,0.0008]
[1645908886479,4.19525313,2836.1,2835.5,0.21654904]
[1645908886480,0.88233,2836.0,2835.5,0.21654904]
[1645908886684,0.88233,2836.0,2834.8,5.94291794]
[1645908886885,3.50347797,2835.9,2834.8,5.88499719]
[1645908887084,0.00803934,2835.5,2834.8,5.88499719]
[1645908887684,0.01137847,2835.5,2834.8,5.88499719]
[1645908888485,0.00803934,2835.5,2834.8,5.88499719]
[1645908888885,0.0033387,2835.3,2834.8,5.88499719]
[1645908889488,0.0033387,2835.3,2834.9,3.5]
[1645908889691,0.00803934,2835.5,2835.0,1.49070903]
[1645908889989,0.00803934,2835.5,2834.8,6.18499719]
[1645908889990,0.0033387,2835.2,2835.1,3.5]
[1645908890232,0.0033387,2835.2,2835.0,1.04588726]
[1645908891036,0.00803934,2835.5,2835.0,1.04588726]
[1645908891236,0.0033387,2835.2,2835.1,3.5]
[1645908891433,0.0033387,2835.2,2835.0,1.04588726]
[1645908892038,0.00803934,2835.5,2835.0,1.04588726]
[1645908892439,0.00333888,2835.2,2835.0,1.04588726]
[1645908892835,0.00333888,2835.2,2834.9,4.5]
[1645908893037,0.00333888,2835.2,2834.9,1.0]
[1645908893244,0.00333888,2835.2,2834.8,10.68499719]
[1645908893438,0.00347797,2835.9,2834.9,1.49079081]
[1645908893641,0.00333888,2835.2,2835.0,3.5]
[1645908893897,0.00333888,2835.2,2835.0,1.0]
[1645908894298,0.00333888,2835.2,2834.8,6.88499719]
[1645908894498,0.00347797,2835.9,2834.8,6.88499719]
[1645908894700,0.00333888,2835.2,2834.9,3.5]
[1645908895098,0.00333888,2835.2,2834.9,4.5]
[1645908895803,0.00347797,2835.9,2834.9,4.5]
[1645908896003,0.00333886,2835.2,2834.9,4.5]
[1645908896199,0.00333886,2835.2,2834.8,5.88499719]
[1645908896402,0.00333886,2835.2,2834.9,3.5]
[1645908896601,0.00333886,2835.2,2834.8,5.88499719]
[1645908896800,0.00333886,2835.2,2834.9,3.5]
[1645908897000,0.00347797,2835.9,2834.9,3.5]
[1645908897201,0.00100621,2835.1,2834.9,3.5]
[1645908897401,0.00402425,2835.6,2835.1,0.00125356]
[1645908898039,0.00347797,2835.9,2835.1,0.00125356]
[1645908899340,0.00347797,2835.9,2835.1,3.50125356]
[1645908899539,0.00347797,2835.9,2835.1,0.00125356]
[1645908899742,0.00114686,2835.6,2835.1,1.00125356]
[1645908899941,0.00114686,2835.6,2835.1,0.00125356]
[1645908900140,0.00114686,2835.6,2835.1,3.50125356]
[1645908900340,0.00114686,2835.6,2835.1,4.50125356]
[1645908900541,0.00347797,2835.9,2835.1,4.42125356]
[1645908900945,0.00114686,2835.5,2835.1,4.42125356]
[1645908901141,0.00114686,2835.5,2835.3,0.3529]
[1645908901388,0.00114686,2835.5,2835.4,21.3437]
[1645908901589,0.00114686,2835.5,2835.4,17.8437]
[1645908901789,0.00347797,2835.9,2835.4,18.8437]
[1645908901990,0.00382035,2835.6,2835.5,3.5]
[1645908902191,0.00347797,2836.1,2835.6,11.5038]
[1645908902402,1.58584181,2836.5,2835.9,0.01215227]
[1645908902702,0.55728697,2836.5,2835.9,0.01215227]
[1645908902896,0.55728697,2836.5,2836.0,19.55233814]
[1645908903098,0.5,2836.5,2836.0,7.3522]
[1645908903304,0.5,2836.5,2836.0,7.0522]
[1645908903503,0.5,2836.5,2836.1,0.5]
[1645908904498,0.5,2836.5,2836.0,7.0522]
[1645908905240,0.34724953,2836.4,2836.0,7.0522]
[1645908905649,5.0,2836.2,2836.0,1.19497371]
[1645908905844,5.0,2836.2,2836.0,0.73791857]
[1645908905845,1.39729684,2836.1,2836.0,0.73791857]
[1645908906048,8.8529,2836.0,2835.1,0.5]
[1645908906243,5.3529,2835.6,2834.5,2.8512]
[1645908906541,5.3529,2835.6,2834.1,2.9288]
[1645908906542,1.44257756,2835.3,2834.1,2.9288]
[1645908906742,1.23567,2835.0,2834.2,1.49116472]
[1645908906940,1.23567,2835.0,2834.9,0.00534625]
[1645908906941,0.88277,2835.0,2834.9,0.00534625]
[1645908907240,1.39277,2835.0,2834.9,0.00534625]
[1645908907444,7.15777,2835.0,2834.9,0.00534625]
[1645908907647,1.575,2835.0,2834.9,0.00534625]
[1645908907845,0.3529,2834.9,2834.0,3.5011]
[1645908908051,0.3529,2834.7,2834.0,3.5011]
[1645908908247,0.51,2834.6,2834.0,3.5011]
[1645908908449,0.51,2834.6,2833.7,9.0]
[1645908908652,0.85724953,2834.6,2833.8,1.49135801]
[1645908909100,0.3529,2834.5,2833.8,1.49135801]
[1645908909301,0.85724953,2834.6,2834.1,0.00415129]
[1645908909503,0.88281,2834.4,2834.1,0.00415129]
[1645908909903,0.51,2834.3,2834.1,0.00415129]
[1645908910304,0.3529,2834.2,2833.5,0.2768]
[1645908910503,0.51,2834.3,2834.1,0.00415129]
[1645908911507,0.3529,2834.2,2833.3,6.0673]
[1645908911708,0.3529,2834.2,2833.4,1.49139426]
[1645908911907,0.70014953,2834.2,2833.4,1.49139426]
[1645908912510,0.70014953,2834.2,2833.6,1.25857468]
[1645908912940,0.34724953,2834.2,2833.7,1.49140297]
[1645908913140,0.34724953,2834.2,2833.4,1.49139299]
[1645908913340,0.34724953,2834.2,2833.5,1.49139116]
[1645908913540,0.34724953,2834.2,2833.6,1.49139116]
[1645908913743,1.23578,2834.1,2833.3,7.0673]
[1645908913948,0.23578,2834.1,2833.4,1.4914395]
[1645908914648,0.51,2834.0,2833.1,1.4914395]
[1645908914840,0.88308,2833.7,2833.2,1.49157588]
[1645908915047,0.88308,2833.7,2833.0,0.00365493]
[1645908915048,4.01,2833.6,2833.0,0.00365493]
[1645908915243,4.01,2833.6,2832.9,1.49170374]
[1645908915546,4.01,2833.6,2832.6,0.00365493]
[1645908915547,1.76641,2833.5,2833.4,0.00534769]
[1645908915744,5.77641,2833.5,2833.4,0.00534769]
[1645908915942,6.65963,2833.5,2833.4,0.00534769]
[1645908916159,5.77641,2833.5,2833.4,0.00534769]
[1645908916392,5.77641,2833.5,2833.2,0.5]
[1645908916598,3.5,2833.4,2833.3,0.00534783]
[1645908916794,4.01,2833.4,2833.3,0.00534783]
[1645908916994,6.0,2833.3,2832.5,0.00365493]
[1645908917195,4.38328,2833.2,2832.5,0.00365493]
[1645908917397,1.76671,2833.0,2832.5,0.00365493]
[1645908917593,3.5,2832.9,2832.3,2.73925493]
[1645908917801,0.51,2832.8,2832.3,0.00365493]
[1645908917998,0.51,2832.8,2831.9,0.07199524]
[1645908917999,3.5,2832.7,2831.9,0.07199524]
[1645908918196,0.88346,2832.4,2831.9,0.07199524]
[1645908918400,3.5,2832.3,2831.9,0.07199524]
[1645908918599,4.01,2832.3,2831.9,0.07199524]
[1645908918797,4.01,2832.3,2832.1,0.5]
[1645908918998,3.5,2832.2,2832.1,0.5]
[1645908919399,3.5,2832.2,2831.9,0.07199524]
[1645908919597,0.51,2832.3,2831.9,0.07199524]
[1645908920237,0.51,2832.3,2831.9,0.07734055]
[1645908920643,3.5,2832.2,2831.9,0.07734055]
[1645908921143,0.34724953,2832.1,2831.9,0.07199524]
[1645908921346,0.34724953,2832.1,2831.9,0.07734055]
[1645908921943,0.34724953,2832.1,2831.9,0.02734055]
[1645908922342,0.34724953,2832.1,2831.9,0.02199524]
[1645908922544,0.34724953,2832.1,2831.9,0.02734062]
[1645908923444,0.34724953,2832.1,2831.9,0.02199524]
[1645908923885,0.34724953,2832.1,2831.9,0.02734062]
[1645908924688,0.64724953,2832.1,2831.9,0.02199524]
[1645908924888,0.64724953,2832.1,2831.9,0.02734062]
[1645908925689,0.34724953,2832.1,2831.9,0.02734062]
[1645908925890,0.34724953,2832.1,2831.9,0.02199524]
[1645908926092,0.9536,2832.4,2831.9,0.02199524]
[1645908926093,0.34724953,2832.3,2831.9,0.02199524]
[1645908926292,0.34724953,2832.3,2831.9,0.02734062]
[1645908927092,0.34724953,2832.3,2831.9,0.02199524]
[1645908927296,0.34724953,2832.3,2832.0,0.00534524]
[1645908928383,0.34724953,2832.3,2831.9,0.02199524]
[1645908928587,0.34724953,2832.3,2832.0,0.00534516]
[1645908928983,0.34724953,2832.3,2832.0,1.15266606]
[1645908929185,0.23054953,2832.8,2832.0,0.00534516]
[1645908929384,0.74054953,2832.8,2832.0,0.00534516]
[1645908929591,1.39344953,2832.8,2831.5,3.64475493]
[1645908929785,1.04054953,2832.8,2832.0,0.00534516]
[1645908930789,0.88339,2832.5,2831.8,1.07256959]
[1645908930987,0.88339,2832.5,2832.3,0.0053448]
[1645908931187,0.88339,2832.5,2832.3,0.0007178]
[1645908931987,1.7636,2832.8,2831.8,0.00365493]
[1645908931988,0.88334,2832.7,2831.8,0.00365493]
[1645908932193,1.2536,2832.8,2831.8,0.00365493]
[1645908932393,0.3,2832.8,2831.8,0.00365493]
[1645908932588,0.3,2832.8,2832.0,1.38204883]
[1645908932788,4.53024,2833.0,2832.0,1.38204883]
[1645908932988,4.53024,2833.0,2832.1,0.00365493]
[1645908933693,0.88331,2832.8,2832.1,0.00365493]
[1645908933890,0.88331,2832.8,2831.7,0.00365493]
[1645908934091,1.18331,2832.8,2831.7,0.00365493]
[1645908935845,1.18331,2832.8,2832.1,0.00534502]
[1645908936646,1.18331,2832.8,2831.7,0.00365493]
[1645908937147,1.18331,2832.8,2832.2,0.00534501]
[1645908937351,1.1740991,2832.8,2832.2,0.00534501]
[1645908937954,1.1740991,2832.8,2832.1,0.00365493]
[1645908938153,1.1740991,2832.8,2832.2,0.00534503]
[1645908939005,1.1740991,2832.8,2832.1,0.00365493]
[1645908939209,1.1740991,2832.8,2832.0,1.23425759]
[1645908939409,1.1740991,2832.8,2832.2,0.00534503]
[1645908939608,0.9536,2832.7,2832.2,0.00534503]
[1645908939911,1.1740991,2832.8,2832.2,0.00534503]
[1645908940308,1.1740991,2832.8,2831.7,0.00365493]
[1645908940505,1.1740991,2832.8,2832.2,0.00534503]
[1645908940916,3.5,2832.7,2832.2,0.00534503]
[1645908941114,1.13472151,2832.5,2832.2,0.00534503]
[1645908941311,1.83728,2832.3,2832.2,0.00534503]
[1645908941515,5.42307617,2832.3,2831.7,0.00365493]
[1645908941708,1.2536,2832.0,2831.6,0.1411]
[1645908941910,0.51,2831.9,2831.6,0.1411]
[1645908942513,1.39369,2831.9,2831.3,0.00365493]
[1645908942955,1.39369,2831.9,2831.6,0.00534575]
[1645908943755,4.89369,2831.9,2831.6,0.00534575]
[1645908943953,4.89369,2831.9,2831.3,0.00365493]
[1645908943954,5.7774239,2831.9,2831.3,0.00365493]
[1645908944156,5.7774239,2831.9,2831.6,0.00397911]
[1645908944356,1.76757,2831.8,2831.6,0.00397911]
[1645908944557,4.9636,2831.7,2831.6,0.00397911]
[1645908944757,4.01,2831.7,2831.6,0.00397911]
[1645908944955,4.31,2831.7,2831.6,0.00397911]
[1645908945161,0.88379,2831.5,2830.8,0.00365493]
[1645908945358,3.5,2831.4,2830.8,0.00365493]
[1645908945556,2.13739,2831.5,2830.6,0.00365493]
[1645908945755,2.13739,2831.5,2830.4,9.5763]
[1645908945756,2.13739,2831.5,2830.7,0.00365493]
[1645908945957,2.13739,2831.5,2830.5,0.00365493]
[1645908946155,2.13739,2831.5,2830.4,9.4352]
[1645908946156,2.13739,2831.5,2830.4,8.93885493]
[1645908946403,0.141479,2831.9,2831.5,0.63850287]
[1645908947003,2.0,2832.4,2831.5,0.63850287]
[1645908947614,0.4384,2832.3,2831.5,0.63850287]
[1645908947816,0.88351,2832.1,2831.5,0.63850287]
[1645908948007,1.18351,2832.1,2831.8,0.00508208]
[1645908948909,1.18351,2832.1,2831.5,0.63850287]
[1645908949110,1.18351,2832.1,2831.8,0.00508208]
[1645908949512,0.88351,2832.1,2831.8,0.00508208]
[1645908949711,0.4384,2832.2,2831.8,0.00508208]
[1645908949909,2.0,2832.4,2831.6,0.00369282]
[1645908950151,2.0,2832.4,2831.5,0.63850287]
[1645908950455,2.0,2832.4,2831.8,0.00508208]
[1645908950648,2.88356,2832.4,2831.8,0.00508208]
[1645908951145,2.88356,2832.4,2831.6,0.00369282]
[1645908951146,1.88356,2832.4,2831.6,0.00369282]
[1645908951347,1.88356,2832.4,2832.0,0.00497952]
[1645908951348,0.88359,2832.3,2832.0,0.00497952]
[1645908951745,0.88348,2832.2,2832.0,0.00497952]
[1645908952347,0.88348,2832.2,2831.6,0.00369282]
[1645908952348,1.18348,2832.2,2831.6,0.00369282]
[1645908952549,0.8836951,2832.0,2831.5,0.63850287]
[1645908952753,0.3,2831.9,2831.5,0.63850287]
[1645908952956,0.88377,2831.8,2831.5,0.63850287]
[1645908953756,0.88377,2831.8,2831.5,0.64227442]
[1645908954401,1.76754,2831.8,2831.5,0.64227442]
[1645908954601,1.18369,2831.9,2831.5,0.64227442]
[1645908954803,1.18369,2831.9,2831.5,0.63850287]
[1645908955004,1.18369,2831.9,2831.5,0.6423031]
[1645908956102,1.18369,2831.9,2831.6,0.00380017]
[1645908957208,1.18369,2831.9,2831.5,0.63850287]
[1645908957508,1.69369,2831.9,2831.6,0.00501064]
[1645908958347,1.69369,2831.9,2831.5,0.63850287]
[1645908958744,1.69369,2831.9,2831.6,0.00509341]
[1645908958945,1.54369,2831.9,2831.6,0.00509341]
[1645908959555,1.54369,2831.9,2831.5,0.63850287]
[1645908960150,1.54369,2831.9,2831.6,0.00509341]
[1645908960756,1.54369,2831.9,2831.5,0.63850287]
[1645908961251,1.54369,2831.9,2831.6,0.00509341]
[1645908961691,0.4384,2831.8,2831.6,0.00509341]
[1645908961894,0.4384,2831.8,2831.5,0.63850287]
[1645908961895,0.51,2831.7,2831.5,0.63850287]
[1645908962092,0.88376,2831.6,2831.5,0.63850287]
[1645908963198,1.69376,2831.6,2831.5,0.63850287]
[1645908964201,1.69376,2831.6,2831.4,0.00498161]
[1645908964202,18.79,2831.5,2831.4,0.00498161]
[1645908964400,1.10846067,2831.4,2830.7,0.00369282]
[1645908964597,0.88406,2831.2,2830.6,1.49285377]
[1645908964799,0.51,2831.1,2830.6,0.00369282]
[1645908964998,0.51,2831.1,2830.4,2.9618]
[1645908964999,0.4384,2830.9,2830.5,1.49287379]
[1645908965277,0.51,2830.8,2830.5,1.49287379]
[1645908965873,0.51,2830.8,2830.6,0.00499031]
[1645908966274,0.81,2830.8,2830.6,0.00499031]
[1645908966472,0.4384,2830.7,2830.6,0.00499031]
[1645908966679,0.51,2830.7,2830.6,0.00499031]
[1645908966874,0.4384,2830.6,2830.1,0.00369282]
[1645908967077,3.5,2830.5,2830.1,1.49290129]
[1645908967278,0.51,2830.5,2830.1,1.49290129]
[1645908967490,4.01,2830.5,2830.1,1.49290129]
[1645908967681,0.51,2830.5,2830.1,1.49290129]
[1645908968282,0.51,2830.5,2830.2,0.00499084]
[1645908968496,4.4484,2830.5,2830.2,0.00499084]
[1645908968686,5.33254,2830.5,2830.2,0.00499084]
[1645908969086,4.89414,2830.5,2830.2,0.00499084]
[1645908969287,0.4384,2830.4,2829.9,0.00369282]
[1645908969489,0.9484,2830.4,2830.2,0.00499392]
[1645908969887,0.4384,2830.3,2830.2,0.00499392]
[1645908970088,0.51,2830.4,2830.3,0.4801211]
[1645908970891,4.01,2830.4,2830.3,0.4801211]
[1645908971088,0.51,2830.4,2830.3,0.4801211]
[1645908971300,4.01,2830.4,2830.3,0.4801211]
[1645908972092,4.31,2830.4,2830.3,0.4801211]
[1645908972397,8.0,2830.3,2830.2,0.00499392]
[1645908972657,8.0,2830.3,2829.9,0.00369282]
[1645908972658,17.17442,2830.2,2829.9,0.00369282]
[1645908972858,17.17442,2830.2,2829.8,0.5]
[1645908972859,0.21958797,2830.0,2829.8,0.5]
[1645908973066,0.51,2829.9,2829.8,0.5]
[1645908973863,0.51,2829.9,2829.4,0.00369282]
[1645908974061,0.88437,2829.7,2829.1,0.00369282]
[1645908974261,0.88437,2829.7,2829.0,1.3431705]
[1645908974262,0.51,2829.6,2829.0,1.47354275]
[1645908975460,0.51,2829.6,2829.0,2.88641214]
[1645908975661,0.51,2829.6,2829.1,1.47354275]
[1645908975861,0.51,2829.6,2829.2,1.47354275]
[1645908976062,0.51,2829.6,2828.9,0.14499282]
[1645908976504,0.88436,2829.4,2829.0,1.47187432]
[1645908976700,0.88436,2829.4,2829.1,0.00534922]
[1645908976901,0.88436,2829.4,2829.2,1.47187432]
[1645908977906,0.88436,2829.4,2828.9,1.15100982]
[1645908978106,0.88436,2829.4,2829.0,1.47178032]
[1645908978306,0.88436,2829.4,2828.9,1.47547314]
[1645908978507,0.88436,2829.4,2829.0,1.47178032]
[1645908978706,0.88436,2829.4,2829.1,1.47178032]
[1645908978911,0.88436,2829.4,2828.8,2.97859282]
[1645908979110,0.88436,2829.4,2829.2,0.03986437]
[1645908981443,0.88436,2829.4,2829.2,0.04520895]
[1645908982447,0.88436,2829.4,2829.2,0.03986437]
[1645908982647,0.88436,2829.4,2829.2,0.04520895]
[1645908983648,0.88436,2829.4,2829.2,0.03986437]
[1645908983904,0.88436,2829.4,2829.2,0.04520895]
[1645908984496,0.88436,2829.4,2829.2,0.00534458]
[1645908984897,0.88436,2829.4,2828.8,0.00369282]
[1645908985097,0.88436,2829.4,2829.2,0.00534458]
[1645908985504,1.76843,2830.2,2829.3,1.40540036]
[1645908985705,0.5,2830.9,2829.6,0.01290639]
[1645908985901,0.5,2830.9,2829.8,0.3529]
[1645908985902,0.07465142,2830.8,2829.8,0.3529]
[1645908986105,0.5,2830.9,2830.0,0.3529]
[1645908986302,0.5,2830.9,2830.1,3.9942]
[1645908986502,1.17434288,2831.8,2830.1,5.39391483]
[1645908986503,1.8832,2831.4,2830.1,5.39391483]
[1645908986807,0.07464062,2831.3,2830.3,0.3529]
[1645908987001,0.88368,2831.6,2830.4,3.99789282]
[1645908987203,0.07463643,2831.5,2830.4,3.99789282]
[1645908987404,0.07463643,2831.5,2830.4,4.99789282]
[1645908987639,0.07463643,2831.5,2831.1,1.25625646]
[1645908989050,1.04130111,2831.9,2831.2,3.5]
[1645908989051,0.01621211,2831.9,2831.2,3.5]
[1645908989247,0.07462946,2831.8,2831.3,7.4162]
[1645908989452,0.01621211,2831.9,2831.5,0.3529]
[1645908989647,2.0,2832.3,2831.6,3.5]
[1645908989849,0.07462497,2832.2,2831.6,0.3529]
[1645908990049,0.01621255,2832.1,2831.7,3.46471001]
[1645908990247,0.07462497,2832.0,2831.7,3.46471001]
[1645908990448,0.07462497,2832.0,2831.6,0.3529]
[1645908990647,0.07462497,2832.0,2831.5,0.3529]
[1645908990850,0.07462497,2832.0,2831.6,3.5]
[1645908991048,2.0,2832.3,2831.5,0.3529]
[1645908991250,0.07462461,2832.2,2831.4,3.5]
[1645908991739,0.07462461,2832.2,2831.3,7.0633]
[1645908991934,0.07462461,2832.2,2831.4,3.5]
[1645908992335,0.07462461,2832.2,2831.3,7.0633]
[1645908992735,0.88353,2832.1,2831.3,7.0633]
[1645908993037,0.07462461,2832.0,2831.3,7.0633]
[1645908994036,0.88364,2831.8,2831.3,7.0633]
[1645908994239,0.07462461,2831.7,2831.3,7.0633]
[1645908996868,0.07462461,2831.6,2831.3,7.0633]
[1645908997064,0.52621255,2832.1,2831.3,7.0633]
[1645908997268,0.0746333,2832.0,2831.3,7.0633]
[1645908997665,0.0746333,2832.0,2831.4,1.27249717]
[1645908998666,0.0746333,2832.0,2831.3,7.0633]
[1645908998898,0.88362,2831.8,2831.3,7.0633]
[1645908999097,0.0746333,2831.7,2831.3,7.0633]
[1645908999505,0.0746333,2831.6,2831.3,7.0633]
[1645908999707,0.51,2832.0,2831.3,7.0633]
[1645908999911,0.07463089,2831.9,2831.3,7.0633]
[1645909000304,0.07463089,2831.9,2831.7,1.16164286]
[1645909000504,0.07463089,2831.9,2831.3,7.0633]
[1645909001306,0.58463089,2831.9,2831.3,7.0633]
[1645909001510,0.07463089,2831.8,2831.3,7.0633]
[1645909001809,0.95826089,2831.8,2831.4,1.25263039]
[1645909002013,0.07463089,2831.7,2831.4,1.25263039]
[1645909002212,0.01298199,2832.2,2831.4,4.75263039]
[1645909002417,0.0746291,2832.1,2831.4,4.75263039]
[1645909002682,0.0746291,2832.1,2831.5,0.3529]
[1645909002870,0.0746291,2832.1,2831.6,3.8529]
[1645909003071,2.66434288,2832.8,2831.7,7.0629]
[1645909003270,0.01358062,2832.3,2831.8,3.5]
[1645909003469,0.07461702,2832.2,2831.8,3.5]
[1645909004269,0.07461702,2832.7,2831.8,3.5]
[1645909004471,0.01358062,2832.6,2832.5,1.15130656]
[1645909004669,0.01358062,2832.6,2831.8,3.5]
[1645909004670,0.08819724,2832.6,2831.8,6.23]
[1645909004871,0.07461662,2832.5,2831.8,3.5]
[1645909005074,0.07461662,2832.5,2831.8,3.8529]
[1645909005271,0.07461662,2832.5,2831.8,4.8529]
[1645909005468,0.07461662,2832.4,2831.8,4.8529]
[1645909005668,0.07461662,2832.3,2831.8,4.8529]
[1645909005874,0.07461662,2832.2,2831.8,4.8529]
[1645909006071,0.01358062,2832.7,2831.9,8.23764035]
[1645909006270,0.07461572,2832.6,2832.0,3.5]
[1645909006714,0.66434288,2832.9,2831.9,8.23764035]
[1645909006715,0.07461572,2832.5,2831.9,8.23764035]
[1645909007014,0.07461572,2832.4,2831.9,8.23764035]
[1645909007215,0.07461572,2832.3,2831.9,8.23764035]
[1645909007414,0.07461572,2832.2,2831.9,8.23764035]
[1645909007620,1.33345543,2832.9,2831.9,8.23764035]
[1645909007621,0.07461572,2832.1,2831.9,8.23764035]
[1645909007814,0.66434288,2832.8,2831.9,8.23764035]
[1645909007815,1.54779288,2832.8,2831.9,8.23764035]
[1645909008015,0.88338,2832.6,2832.0,3.5]
[1645909008214,0.07461857,2832.5,2831.9,8.23764035]
[1645909008415,0.07461857,2832.4,2831.9,8.23764035]
[1645909008616,0.07461857,2832.3,2831.9,8.23764035]
[1645909008816,0.07461857,2832.2,2831.9,8.23764035]
[1645909009020,0.96434288,2832.9,2831.9,8.23764035]
[1645909009217,0.01621255,2832.7,2832.0,3.5]
[1645909009418,0.07461709,2832.6,2832.0,3.5]
[1645909010183,0.07461709,2832.6,2831.9,8.23764035]
[1645909010766,0.07461709,2832.5,2831.9,8.23764035]
[1645909010968,0.07461709,2832.4,2831.9,8.23764035]
[1645909011176,0.07461709,2832.3,2831.9,8.23764035]
[1645909011370,1.76674,2832.9,2831.9,8.23764035]
[1645909011766,0.01621255,2832.7,2831.9,8.23764035]
[1645909012874,0.01621255,2832.9,2831.9,8.23764035]
[1645909013895,0.88329,2833.0,2831.9,8.23764035]
[1645909014097,0.89642999,2833.0,2831.9,8.23764035]
[1645909014296,0.89642999,2833.0,2831.9,8.59054035]
[1645909014499,0.89642999,2833.0,2831.9,8.23764035]
[1645909016605,1.56077287,2833.0,2831.9,8.23764035]
[1645909016805,0.89642999,2833.0,2831.9,8.23764035]
[1645909017670,0.89803135,2833.0,2831.9,8.23764035]
[1645909017860,3.5,2832.9,2831.9,8.23764035]
[1645909018067,0.88335,2832.7,2831.9,8.23764035]
[1645909018262,0.83335,2832.7,2831.9,8.23764035]
[1645909019465,1.71683,2832.7,2831.9,8.23764035]
[1645909019667,0.83335,2832.7,2831.9,8.23764035]
[1645909020672,3.5,2832.6,2831.9,7.0624]
[1645909020866,0.88344,2832.4,2831.9,7.0624]
[1645909021912,0.88344,2832.4,2831.9,7.06037718]
[1645909023513,0.88344,2832.4,2831.9,6.56037718]
[1645909025163,0.88344,2832.4,2831.9,6.46037718]
[1645909028264,0.66434288,2832.5,2831.9,6.46037718]
[1645909028469,0.66434288,2832.6,2831.9,6.46037718]
[1645909028907,1.18789507,2832.7,2831.9,6.46037718]
[1645909029309,0.66434288,2832.6,2831.9,6.46037718]
[1645909030209,0.66434288,2832.4,2831.9,5.81433947]
[1645909030607,0.66434288,2832.4,2831.9,5.78563137]
[1645909030807,3.72436181,2833.0,2831.9,5.78563137]
[1645909030808,0.66434288,2832.5,2831.9,5.78563137]
[1645909032677,0.07461907,2832.6,2831.9,5.78563137]
[1645909032678,0.66434288,2832.4,2831.9,5.78563137]
[1645909034469,0.66434288,2832.3,2831.9,5.78563137]
[1645909035288,0.66434288,2832.1,2831.9,5.78563137]